fUST/lending_fUST_20250608
["ID","MTS","AMOUNT","RATE_DAILY","PERIOD"]
[364991791,1749385848135,-584.73,0.00021917,2]
[364991794,1749385848146,-440.0,0.00021917,2]
[364991796,1749385848157,-1705.48,0.00021917,2]
[364991798,1749385848167,-440.0,0.00021917,2]
[364991800,1749385848177,-1062.42,0.00021917,2]
[364991802,1749385848188,-1324.04,0.00021917,2]
[364991804,1749385848199,-1493.91,0.00021917,2]
[364991806,1749385848212,-454.67,0.00021917,2]
[364991808,1749385848222,-1950.37,0.00021917,2]
[364991810,1749385848233,-513.44,0.00021917,2]
[364991812,1749385848243,-440.0,0.00021917,2]
[364991814,1749385848254,-836.4,0.00021917,2]
[364991816,1749385848265,-440.0,0.00021917,2]
[364991819,1749385848275,-480.26,0.00021917,2]
[364991820,1749385848285,-1136.56,0.00021917,2]
[364991823,1749385848295,-528.25,0.00021917,2]
[364991825,1749385848305,-1361.72,0.00021917,2]
[364991827,1749385848315,-440.0,0.00021917,2]
[364991829,1749385848326,-273.35850707,0.00021918,2]
[364991831,1749385848337,-562.54574875,0.0002195,2]
[364991833,1749385848347,-900.0,0.00021978,2]
[364991835,1749385848358,-587.0,0.00021982,2]
[364991837,1749385848369,-166.0,0.00022,2]
[364991839,1749385848379,-171.0,0.00022,2]
[364991841,1749385848389,-80960.62933716,0.00022,2]
[364991843,1749385848401,-501.36390711,0.00022015,2]
[364991845,1749385848411,-500.0,0.00022015,2]
[364991847,1749385848422,-1000.0,0.00022025,2]
[364991849,1749385848432,-1200.0,0.00022025,2]
[364991852,1749385848442,-1000.0,0.00022025,2]
[364991854,1749385848454,-1009.61112234,0.00022025,2]
[364991856,1749385848464,-500.0,0.00022031,2]
[364991858,1749385848475,-1002.01125953,0.00022031,2]
[364991860,1749385848484,-500.0,0.00022031,2]
[364991862,1749385848495,-153.0,0.00022137,2]
[364991864,1749385848505,-153.0,0.00022137,2]
[364991866,1749385848515,-440.0,0.00022191,4]
[364991868,1749385848526,-548.36,0.00022191,4]
[364991870,1749385848536,-693.01,0.00022191,4]
[364991872,1749385848546,-629.01,0.00022191,4]
[364991874,1749385848556,-710.07,0.00022191,4]
[364991876,1749385848566,-734.64,0.00022191,4]
[364991878,1749385848576,-518.22,0.00022191,4]
[364991880,1749385848586,-440.0,0.00022191,4]
[364991882,1749385848596,-1026.07,0.00022191,4]
[364991884,1749385848606,-584.73,0.00022191,4]
[364991886,1749385848616,-559.58226701,0.00022191,4]
[364991888,1749385848626,-1705.48,0.00022191,4]
[364991890,1749385848636,-440.0,0.00022191,2]
[364991892,1749385848646,-1062.42,0.00022191,4]
[364991895,1749385848656,-1324.04,0.00022191,4]
[364991897,1749385848666,-1493.91,0.00022191,4]
[364991898,1749385848676,-454.67,0.00022191,4]
[364991901,1749385848687,-1950.37,0.00022191,4]
[364991903,1749385848698,-513.44,0.00022191,4]
[364991905,1749385848709,-440.0,0.00022191,4]
[364991907,1749385848719,-836.4,0.00022191,4]
[364991909,1749385848729,-440.0,0.00022191,4]
[364991911,1749385848739,-480.26,0.00022191,4]
[364991913,1749385848748,-1136.56,0.00022191,4]
[364991915,1749385848759,-528.25,0.00022191,4]
[364991917,1749385848769,-1361.72,0.00022191,4]
[364991919,1749385848778,-440.0,0.00022191,4]
[364991921,1749385848788,-500.0,0.00022262,2]
[364991923,1749385848797,-500.0,0.00022264,2]
[364991925,1749385848807,-500.0,0.00022264,2]
[364991927,1749385848817,-500.0,0.00022264,2]
[364991929,1749385848827,-1000.0,0.0002227,2]
[364991931,1749385848838,-1001.34608433,0.0002227,2]
[364991933,1749385848847,-5000.0,0.00022371,2]
[364991935,1749385848857,-399.78354313,0.0002238,2]
[364991937,1749385848866,-501.53987328,0.0002238,2]
[364991939,1749385848876,-1500.0,0.00022456,2]
[364991941,1749385848885,-352.960518,0.00022465,7]
[364991943,1749385848895,-500.0,0.00022465,2]
[364991954,1749385849000,-440.0,0.00022465,4]
[364991956,1749385849012,-548.36,0.00022465,4]
[364991958,1749385849023,-693.01,0.00022465,4]
[364991960,1749385849033,-629.01,0.00022465,4]
[364991962,1749385849042,-710.07,0.00022465,4]
[364991964,1749385849052,-734.64,0.00022465,4]
[364991966,1749385849062,-518.22,0.00022465,4]
[364991968,1749385849072,-440.0,0.00022465,4]
[364991970,1749385849082,-1026.07,0.00022465,4]
[364991973,1749385849092,-584.73,0.00022465,4]
[364991975,1749385849102,-1705.48,0.00022465,4]
[364991977,1749385849112,-440.0,0.00022465,2]
[364991978,1749385849121,-1062.42,0.00022465,4]
[364991981,1749385849131,-1324.04,0.00022465,4]
[364991983,1749385849141,-1493.91,0.00022465,4]
[364991985,1749385849151,-454.67,0.00022465,4]
[364991987,1749385849161,-1950.37,0.00022465,4]
[364991989,1749385849175,-513.44,0.00022465,4]
[364991991,1749385849185,-329.45629374,0.00022465,4]
[364991993,1749385849196,-836.4,0.00022465,4]
[364991995,1749385849205,-162.93217665,0.00022465,4]
[364991997,1749385849215,-480.26,0.00022465,4]
[364991999,1749385849225,-1136.56,0.00022465,4]
[364992001,1749385849235,-528.25,0.00022465,4]
[364992003,1749385849245,-1361.72,0.00022465,4]
[364992005,1749385849255,-1368.0,0.000225,7]
[364992007,1749385849265,-501.73158183,0.00022573,2]
[364992009,1749385849274,-1800.0,0.00022573,2]
[364992011,1749385849284,-1500.0,0.00022573,2]
[364992013,1749385849297,-151.0,0.000226,9]
[364992015,1749385849307,-2460.56264745,0.000226,2]
[364992017,1749385849317,-100182.91143494,0.000226,7]
[364992019,1749385849327,-159.358664,0.00022638,7]
[364992021,1749385849337,-345.23,0.00022685,30]
[364992023,1749385849350,-30589.25,0.000227,2]
[364992025,1749385849360,-4062.35693353,0.000227,2]
[364992027,1749385849370,-151.0,0.000227,7]
[364992029,1749385849380,-1611.07,0.00022715,2]
[364992031,1749385849390,-7554.2860261,0.0002272,3]
[364992033,1749385849400,-12500.0,0.00022721,3]
[364992035,1749385849410,-12500.0,0.0002273,3]
[364992037,1749385849419,-12500.0,0.00022739,3]
[364992038,1749385849429,-352.960518,0.00022739,7]
[364992039,1749385849439,-2331.3461548,0.00022739,3]
[364992040,1749385849450,-440.0,0.00022739,4]
[364992041,1749385849461,-548.36,0.00022739,4]
[364992042,1749385849471,-693.01,0.00022739,4]
[364992043,1749385849482,-629.01,0.00022739,4]
[364992044,1749385849492,-710.07,0.00022739,4]
[364992045,1749385849501,-734.64,0.00022739,4]
[364992046,1749385849511,-518.22,0.00022739,4]
[364992047,1749385849522,-440.0,0.00022739,4]
[364992048,1749385849532,-1026.07,0.00022739,4]
[364992049,1749385849542,-584.73,0.00022739,4]
[364992050,1749385849552,-1705.48,0.00022739,4]
[364992051,1749385849561,-440.0,0.00022739,2]
[364992052,1749385849571,-1062.42,0.00022739,4]
[364992054,1749385849582,-1324.04,0.00022739,4]
[364992056,1749385849592,-1493.91,0.00022739,4]
[364992058,1749385849602,-454.67,0.00022739,4]
[364992060,1749385849612,-1950.37,0.00022739,4]
[364992062,1749385849622,-513.44,0.00022739,4]
[364992064,1749385849632,-836.4,0.00022739,4]
[364992066,1749385849642,-480.26,0.00022739,4]
[364992068,1749385849652,-1136.56,0.00022739,4]
[364992070,1749385849661,-528.25,0.00022739,4]
[364992073,1749385849671,-1361.72,0.00022739,4]
[364992075,1749385849680,-501.45438873,0.00022773,2]
[364992077,1749385849691,-352.960518,0.00022783,7]
[364992078,1749385849700,-151.0,0.000228,10]
[364992080,1749385849711,-502.378787,0.00022812,2]
[364992083,1749385849721,-306.10610434,0.00022818,2]
[364992085,1749385849731,-364.8515477,0.00022822,2]
[364992087,1749385849742,-364.8515477,0.00022822,2]
[364992089,1749385849751,-364.8515477,0.00022822,2]
[364992091,1749385849761,-5000.0,0.00022919,2]
[364992093,1749385849770,-153.0,0.00022959,2]
[364992095,1749385849780,-153.0,0.00022959,2]
[364992097,1749385849789,-153.0,0.00022959,2]
[364992099,1749385849799,-176.7524085,0.00022959,2]
[364992101,1749385849808,-573.126752,0.00022959,2]
[364992103,1749385849817,-158.6873432,0.00022959,2]
[364992105,1749385849827,-153.0,0.00022959,2]
[364992107,1749385849837,-158.6873432,0.00022959,2]
[364992109,1749385849846,-573.126752,0.00022959,2]
[364992111,1749385849855,-176.7524085,0.00022959,2]
[364992113,1749385849865,-153.0,0.00022959,2]
[364992115,1749385849876,-176.7524085,0.00022959,2]
[364992117,1749385849886,-153.0,0.00022959,2]
[364992119,1749385849896,-158.6873432,0.00022959,2]
[364992121,1749385849906,-573.126752,0.00022959,2]
[364992123,1749385849915,-800.0,0.00022999,2]
[364992125,1749385849925,-160.0,0.00023,3]
[364992127,1749385849935,-9000.0,0.00023,3]
[364992129,1749385849945,-32680.89933984,0.00023,2]
[364992131,1749385849955,-974.38867386,0.00023,2]
[364992133,1749385849964,-2142.65736396,0.00023,30]
[364992135,1749385849974,-229.60437222,0.00023,3]
[364992138,1749385849984,-2000.0,0.00023,2]
[364992140,1749385849993,-423.98131849,0.00023,3]
[364992142,1749385850003,-2000.0,0.00023004,2]
[364992143,1749385850014,-500.0,0.00023013,2]
[364992145,1749385850024,-440.0,0.00023013,4]
[364992148,1749385850034,-548.36,0.00023013,4]
[364992150,1749385850044,-693.01,0.00023013,4]
[364992152,1749385850054,-629.01,0.00023013,4]
[364992154,1749385850064,-710.07,0.00023013,4]
[364992156,1749385850073,-734.64,0.00023013,4]
[364992158,1749385850083,-518.22,0.00023013,4]
[364992160,1749385850092,-440.0,0.00023013,4]
[364992162,1749385850102,-1026.07,0.00023013,4]
[364992164,1749385850112,-584.73,0.00023013,4]
[364992166,1749385850121,-1705.48,0.00023013,4]
[364992168,1749385850130,-440.0,0.00023013,2]
[364992170,1749385850139,-1062.42,0.00023013,4]
[364992172,1749385850150,-1324.04,0.00023013,4]
[364992174,1749385850159,-1493.91,0.00023013,4]
[364992176,1749385850169,-454.67,0.00023013,4]
[364992178,1749385850179,-1950.37,0.00023013,4]
[364992180,1749385850188,-513.44,0.00023013,4]
[364992182,1749385850197,-836.4,0.00023013,4]
[364992184,1749385850208,-480.26,0.00023013,4]
[364992186,1749385850217,-1136.56,0.00023013,4]
[364992188,1749385850227,-528.25,0.00023013,4]
[364992191,1749385850236,-1361.72,0.00023013,4]
[364992192,1749385850246,-166.0,0.00023014,7]
[364992195,1749385850256,-800.0,0.00023056,2]
[364992197,1749385850266,-900.0,0.00023074,2]
[364992199,1749385850275,-2400.0,0.00023121,2]
[364992201,1749385850285,-2000.0,0.00023121,2]
[364992203,1749385850294,-800.0,0.00023148,2]
[364992205,1749385850304,-215.0738,0.00023192,2]
[364992215,1749385850395,-151.0,0.000232,6]
[364992217,1749385850405,-932.722255,0.00023225,3]
[364992220,1749385850415,-440.0,0.00023287,4]
[364992222,1749385850425,-548.36,0.00023287,4]
[364992224,1749385850435,-693.01,0.00023287,4]
[364992226,1749385850446,-629.01,0.00023287,4]
[364992228,1749385850457,-710.07,0.00023287,4]
[364992230,1749385850467,-734.64,0.00023287,4]
[364992232,1749385850477,-518.22,0.00023287,4]
[364992234,1749385850487,-440.0,0.00023287,4]
[364992236,1749385850497,-1026.07,0.00023287,4]
[364992239,1749385850508,-584.73,0.00023287,4]
[364992241,1749385850517,-1705.48,0.00023287,4]
[364992243,1749385850527,-440.0,0.00023287,2]
[364992245,1749385850537,-1062.42,0.00023287,4]
[364992247,1749385850546,-1324.04,0.00023287,4]
[364992249,1749385850556,-1493.91,0.00023287,4]
[364992251,1749385850566,-454.67,0.00023287,4]
[364992253,1749385850576,-1950.37,0.00023287,4]
[364992255,1749385850585,-513.44,0.00023287,4]
[364992257,1749385850595,-836.4,0.00023287,4]
[364992259,1749385850605,-480.26,0.00023287,4]
[364992261,1749385850614,-1136.56,0.00023287,4]
[364992263,1749385850624,-528.25,0.00023287,4]
[364992265,1749385850634,-1361.72,0.00023287,4]
[364992267,1749385850643,-800.0,0.00023298,2]
[364992269,1749385850653,-598.14,0.000233,7]
[364992271,1749385850663,-800.0,0.0002332,2]
[364992273,1749385850674,-488.07301504,0.00023379,2]
[364992275,1749385850684,-352.960518,0.00023397,7]
[364992278,1749385850694,-352.9605099,0.0002341,7]
[364992280,1749385850705,-168.37605534,0.00023461,2]
[364992282,1749385850715,-5000.0,0.00023467,2]
[364992284,1749385850724,-2000.0,0.000235,2]
[364992286,1749385850734,-511.72434709,0.00023525,2]
[364992288,1749385850743,-42781.05018281,0.00023547,2]
[364992290,1749385850753,-1508.34367556,0.00023552,2]
[364992292,1749385850763,-165.895707,0.00023552,7]
[364992294,1749385850772,-500.0,0.00023561,2]
[364992296,1749385850782,-440.0,0.00023561,4]
[364992298,1749385850792,-548.36,0.00023561,4]
[364992300,1749385850802,-693.01,0.00023561,4]
[364992302,1749385850812,-629.01,0.00023561,4]
[364992305,1749385850822,-710.07,0.00023561,4]
[364992307,1749385850831,-734.64,0.00023561,4]
[364992309,1749385850841,-518.22,0.00023561,4]
[364992311,1749385850851,-440.0,0.00023561,4]
[364992313,1749385850861,-1026.07,0.00023561,4]
[364992315,1749385850870,-584.73,0.00023561,4]
[364992317,1749385850880,-1705.48,0.00023561,4]
[364992319,1749385850890,-440.0,0.00023561,2]
[364992321,1749385850899,-1062.42,0.00023561,4]
[364992323,1749385850909,-1324.04,0.00023561,4]
[364992325,1749385850918,-1493.91,0.00023561,4]
[364992327,1749385850928,-454.67,0.00023561,4]
[364992329,1749385850938,-1950.37,0.00023561,4]
[364992331,1749385850949,-513.44,0.00023561,4]
[364992333,1749385850959,-836.4,0.00023561,4]
[364992335,1749385850968,-480.26,0.00023561,4]
[364992337,1749385850978,-1136.56,0.00023561,4]
[364992339,1749385850988,-528.25,0.00023561,4]
[364992341,1749385850998,-1361.72,0.00023561,4]
[364992344,1749385851007,-1879.58,0.00023589,2]
[364992346,1749385851019,-6195.48634511,0.000236,2]
[364992348,1749385851028,-4922.77,0.00023629,30]
[364992350,1749385851037,-364.8515477,0.00023644,2]
[364992352,1749385851047,-364.8515477,0.00023644,2]
[364992354,1749385851056,-354.9729386,0.00023644,2]
[364992356,1749385851066,-3000.0,0.00023669,2]
[364992358,1749385851076,-2500.0,0.00023669,2]
[364992360,1749385851086,-151.0,0.00023671,7]
[364992362,1749385851096,-460.3,0.00023672,30]
[364992364,1749385851106,-150.0,0.00023673,2]
[364992366,1749385851115,-151.0,0.0002368,7]
[364992368,1749385851126,-151.0,0.0002368,7]
[364992370,1749385851135,-151.0,0.0002368,7]
[364992372,1749385851145,-2000.0,0.00023698,7]
[364992374,1749385851154,-2000.0,0.00023698,7]
[364992376,1749385851164,-2000.0,0.00023698,7]
[364992378,1749385851173,-2000.0,0.00023698,7]
[364992380,1749385851183,-2000.0,0.00023698,7]
[364992383,1749385851193,-2000.0,0.00023698,7]
[364992385,1749385851202,-2000.0,0.00023698,7]
[364992387,1749385851213,-2000.0,0.00023698,7]
[364992389,1749385851223,-2000.0,0.00023698,7]
[364992391,1749385851232,-2000.0,0.00023698,7]
[364992393,1749385851242,-2000.0,0.00023698,7]
[364992395,1749385851251,-2000.0,0.00023698,7]
[364992397,1749385851260,-2000.0,0.00023698,7]
[364992399,1749385851270,-865.6946667,0.00023698,7]
[364992401,1749385851279,-151.0,0.00023698,7]
[364992403,1749385851288,-151.0,0.00023698,7]
[364992405,1749385851298,-165.36601,0.00023698,7]
[364992407,1749385851307,-165.36601,0.00023698,7]
[364992409,1749385851317,-6195.48634505,0.00023699,2]
[364992411,1749385851326,-200.0,0.00023699,2]
[364992413,1749385851335,-41969.11492409,0.000237,2]
[364992424,1749385851434,-6000.0,0.000237,2]
[364992444,1749385851617,-440.0,0.00019178,2]
[364992446,1749385851628,-560.0,0.00019626,2]
[364993074,1749386267696,4200.0,0.00016,2]
[364993075,1749386622697,-175.29521816,0.00018198,2]
[364993076,1749386622719,-180.0,0.00018207,2]
[364993077,1749386622741,-300.0,0.00018207,2]
[364993078,1749386622765,-300.0,0.00018207,2]
[364993079,1749386622787,-24900.0,0.00018208,2]
[364993080,1749386622809,-325.48,0.00018329,2]
[364993081,1749386622832,-316.4295038,0.00018976,2]
[364993082,1749386622857,-235.90408916,0.00019073,2]
[364993083,1749386622880,-1444.95934266,0.00019078,2]
[364993084,1749386622905,-500.0,0.00019172,2]
[364993085,1749386622928,-589.04826043,0.00019172,2]
[364993086,1749386622949,-500.0,0.00019173,2]
[364993087,1749386622974,-559.24938011,0.00019173,2]
[364993088,1749386622996,-502.08188729,0.00019173,2]
[364993089,1749386623019,-500.0,0.00019173,2]
[364993090,1749386623045,-507.05499244,0.00019173,2]
[364993091,1749386623068,-502.32294802,0.00019173,2]
[364993092,1749386623089,-500.0,0.00019173,2]
[364993093,1749386623110,-500.0,0.00019173,2]
[364993094,1749386623133,-500.0,0.00019173,2]
[364993095,1749386623156,-500.0,0.00019173,2]
[364993096,1749386623178,-500.0,0.00019173,2]
[364993097,1749386623201,-549.40032849,0.00019173,2]
[364993098,1749386623222,-500.7564826,0.00019173,2]
[364993099,1749386623246,-500.0,0.00019173,2]
[364993100,1749386623268,-500.0,0.00019173,2]
[364993101,1749386623291,-500.0,0.00019173,2]
[364993102,1749386623314,-500.6428126,0.00019177,2]
[364993103,1749386623339,-500.0,0.00019177,2]
[364993104,1749386623363,-505.90256712,0.00019177,2]
[364993105,1749386623386,-319.72386323,0.00019177,2]
[364993106,1749386623410,-500.0,0.00019177,2]
[364993107,1749386623435,-512.73587671,0.00019177,2]
[364993108,1749386623459,-420.0,0.00019178,2]
[364993109,1749386623482,-440.0,0.00019178,2]
[364993110,1749386623504,-493.76271534,0.00019178,2]
[364993111,1749386623527,-440.0,0.00019178,2]
[364993112,1749386623549,-210.45124826,0.00019178,2]
[364993113,1749386623572,-440.0,0.00019178,2]
[364993114,1749386623593,-440.0,0.00019178,2]
[364993115,1749386623618,-434.28694993,0.00019178,2]
[364993116,1749386623640,-440.0,0.00019178,2]
[364993117,1749386623662,-430.0,0.00019178,2]
[364993118,1749386623684,-440.0,0.00019178,2]
[364993119,1749386623707,-440.0,0.00019178,2]
[364993120,1749386623729,-440.0,0.00019178,2]
[364993121,1749386623755,-440.0,0.00019178,2]
[364993122,1749386623778,-440.0,0.00019178,2]
[364993123,1749386623800,-520.0,0.00019178,2]
[364993124,1749386623822,-440.0,0.00019178,2]
[364993125,1749386623844,-430.0,0.00019178,2]
[364993126,1749386623866,-433.18760519,0.00019178,2]
[364993127,1749386623887,-440.0,0.00019178,2]
[364993128,1749386623921,-430.88810857,0.00019178,2]
[364993129,1749386623944,-437.60978903,0.00019178,2]
[364993130,1749386623969,-411.46357349,0.00019178,2]
[364993131,1749386623994,-440.0,0.00019178,2]
[364993132,1749386624017,-426.53693295,0.00019178,2]
[364993133,1749386624039,-479.37316627,0.00019178,2]
[364993134,1749386624061,-440.0,0.00019178,2]
[364993135,1749386624085,-440.0,0.00019178,2]
[364993136,1749386624108,-277.79514152,0.00019178,2]
[364993137,1749386624131,-430.0,0.00019178,2]
[364993138,1749386624156,-440.0,0.00019178,2]
[364993139,1749386624181,-440.0,0.00019178,2]
[364993140,1749386624205,-440.0,0.00019178,2]
[364993141,1749386624227,-422.66987332,0.00019178,2]
[364993142,1749386624249,-448.1800986,0.00019178,2]
[364993143,1749386624270,-440.0,0.00019178,2]
[364993144,1749386624291,-440.0,0.00019178,2]
[364993145,1749386624315,-440.0,0.00019178,2]
[364993146,1749386624336,-440.0,0.00019178,2]
[364993147,1749386624497,-440.0,0.00019178,2]
[364993148,1749386624526,-440.0,0.00019178,2]
[364993149,1749386624554,-433.01600142,0.00019178,2]
[364993150,1749386624575,-433.30605359,0.00019178,2]
[364993151,1749386624598,-432.51936694,0.00019178,2]
[364993152,1749386624622,-440.0,0.00019178,2]
[364993153,1749386624644,-440.0,0.00019178,2]
[364993154,1749386624666,-442.7592517,0.00019178,2]
[364993155,1749386624688,-440.0,0.00019178,2]
[364993156,1749386624710,-435.81428046,0.00019178,2]
[364993157,1749386624733,-440.0,0.00019178,2]
[364993158,1749386624754,-440.0,0.00019178,2]
[364993159,1749386624775,-440.0,0.00019178,2]
[364993160,1749386624797,-440.0,0.00019178,2]
[364993161,1749386624820,-514.23364687,0.00019178,2]
[364993162,1749386624841,-440.0,0.00019178,2]
[364993163,1749386624862,-400.86320496,0.00019178,2]
[364993164,1749386624887,-449.40453236,0.00019178,2]
[364993165,1749386624910,-440.0,0.00019178,2]
[364993166,1749386624931,-431.67504431,0.00019178,2]
[364993167,1749386624955,-440.0,0.00019178,2]
[364993168,1749386624978,-303.79001968,0.00019178,2]
[364993169,1749386625000,-450.0,0.00019178,2]
[364993170,1749386625022,-440.0,0.00019178,2]
[364993171,1749386625044,-440.0,0.00019178,2]
[364993172,1749386625065,-498.12027655,0.00019178,2]
[364993173,1749386625086,-440.0,0.00019178,2]
[364993174,1749386625107,-433.31764948,0.00019178,2]
[364993175,1749386625129,-440.0,0.00019178,2]
[364993176,1749386625149,-424.06675205,0.00019178,2]
[364993177,1749386625170,-440.0,0.00019178,2]
[364993178,1749386625191,-440.0,0.00019178,2]
[364993179,1749386625212,-430.0,0.00019178,2]
[364993180,1749386625233,-440.0,0.00019178,2]
[364993181,1749386625253,-440.0,0.00019178,2]
[364993182,1749386625273,-513.42475734,0.00019178,2]
[364993183,1749386625293,-440.0,0.00019178,2]
[364993184,1749386625314,-319.80132862,0.00019178,2]
[364993185,1749386625334,-430.0,0.00019178,2]
[364993186,1749386625355,-440.0,0.00019178,2]
[364993187,1749386625377,-440.0,0.00019178,2]
[364993188,1749386625399,-440.0,0.00019178,2]
[364993189,1749386625422,-315.08801321,0.00019178,2]
[364993190,1749386625445,-440.0,0.00019178,2]
[364993191,1749386625467,-440.0,0.00019178,2]
[364993192,1749386625489,-440.0,0.00019178,2]
[364993193,1749386625511,-440.0,0.00019178,2]
[364993194,1749386625532,-430.0,0.00019178,2]
[364993195,1749386625554,-436.88955463,0.00019178,2]
[364993196,1749386625576,-440.0,0.00019178,2]
[364993197,1749386625598,-440.0,0.00019178,2]
[364993198,1749386625620,-432.09244144,0.00019178,2]
[364993199,1749386625643,-420.0,0.00019178,2]
[364993200,1749386625666,-440.0,0.00019178,2]
[364993201,1749386625688,-440.0,0.00019178,2]
[364993202,1749386625712,-430.0,0.00019178,2]
[364993203,1749386625734,-391.27885011,0.00019178,2]
[364993204,1749386625757,-430.0,0.00019178,2]
[364993205,1749386625779,-404.38847281,0.00019178,2]
[364993206,1749386625800,-440.0,0.00019178,2]
[364993207,1749386625822,-402.32390117,0.00019178,2]
[364993208,1749386625847,-440.0,0.00019178,2]
[364993209,1749386625871,-430.0,0.00019178,2]
[364993210,1749386625892,-402.74733377,0.00019178,2]
[364993211,1749386625915,-440.0,0.00019178,2]
[364993212,1749386625937,-440.0,0.00019178,2]
[364993213,1749386625961,-440.0,0.00019178,2]
[364993214,1749386625983,-440.0,0.00019178,2]
[364993215,1749386626006,-440.0,0.00019178,2]
[364993216,1749386626028,-500.0,0.00019178,2]
[364993217,1749386626050,-440.0,0.00019178,2]
[364993218,1749386626075,-440.0,0.00019178,2]
[364993219,1749386626097,-440.0,0.00019178,2]
[364993220,1749386626119,-440.0,0.00019178,2]
[364993221,1749386626142,-404.45975693,0.00019178,2]
[364993222,1749386626165,-404.2520685,0.00019178,2]
[364993223,1749386626191,-408.288862,0.00019178,2]
[364993224,1749386626218,-440.0,0.00019178,2]
[364993225,1749386626241,-440.0,0.00019178,2]
[364993226,1749386626263,-440.0,0.00019178,2]
[364993227,1749386626286,-434.56046433,0.00019178,2]
[364993228,1749386626308,-440.0,0.00019178,2]
[364993229,1749386626329,-440.0,0.00019178,2]
[364993230,1749386626351,-440.0,0.00019178,2]
[364993231,1749386626374,-440.0,0.00019178,2]
[364993232,1749386626396,-440.0,0.00019178,2]
[364993233,1749386626418,-440.0,0.00019178,2]
[364993234,1749386626443,-403.16433165,0.00019178,2]
[364993235,1749386626467,-440.0,0.00019178,2]
[364993236,1749386626489,-440.0,0.00019178,2]
[364993237,1749386626512,-440.0,0.00019178,2]
[364993238,1749386626533,-430.0,0.00019178,2]
[364993239,1749386626556,-161.94563583,0.00019178,2]
[364993240,1749386626579,-430.0,0.00019178,2]
[364993241,1749386626601,-160.39075488,0.00019178,2]
[364993242,1749386626625,-433.12661651,0.00019178,2]
[364993243,1749386626646,-440.0,0.00019178,2]
[364993244,1749386626668,-440.0,0.00019178,2]
[364993245,1749386626690,-440.0,0.00019178,2]
[364993246,1749386626713,-371.6777489,0.00019178,2]
[364993247,1749386626734,-440.0,0.00019178,2]
[364993248,1749386626757,-440.0,0.00019178,2]
[364993249,1749386626779,-440.0,0.00019178,2]
[364993250,1749386626900,-440.0,0.00019178,2]
[364993251,1749386626925,-440.0,0.00019178,2]
[364993252,1749386626946,-440.0,0.00019178,2]
[364993253,1749386626970,-440.0,0.00019178,2]
[364993254,1749386626990,-403.95569791,0.00019178,2]
[364993255,1749386627012,-430.0,0.00019178,2]
[364993256,1749386627036,-440.0,0.00019178,2]
[364993257,1749386627057,-440.0,0.00019178,2]
[364993258,1749386627077,-440.0,0.00019178,2]
[364993259,1749386627098,-440.0,0.00019178,2]
[364993260,1749386627119,-440.0,0.00019178,2]
[364993261,1749386627141,-440.0,0.00019178,2]
[364993262,1749386627161,-401.71795561,0.00019178,2]
[364993263,1749386627182,-473.9403868,0.00019178,2]
[364993264,1749386627204,-440.0,0.00019178,2]
[364993265,1749386627225,-430.0,0.00019178,2]
[364993266,1749386627248,-440.0,0.00019178,2]